[Event "Titled Tuesday Blitz June 13 Late 2023"]
[White "Manea, Alexandru"]
[Black "Moroni, Luca Jr"]
[WhiteFideId "1207660"]
[BlackFideId "865834"]
[WhiteElo "2226"]
[BlackElo "2569"]
[Result "1-0"]
[Round "7"]
[TimeControl "180+2"]
[Date "2023.06.13"]
[WhiteClock "0:00:45"]
[BlackClock "0:00:22"]
[Board "24"]

1. d4 {[%clk 0:02:57]}  g6 {[%clk 0:03:00]} 2. h4 {[%clk 0:02:57]}  Bg7 {[%clk 0:03:01]} 3. h5 {[%clk 0:02:57]}  gxh5 {[%clk 0:03:01]} 4. Rxh5 {[%clk 0:02:56]}  Nf6 {[%clk 0:03:01]} 5. Rh1 {[%clk 0:02:56]}  d5 {[%clk 0:03:01]} 6. c3 {[%clk 0:02:57]}  Bf5 {[%clk 0:03:00]} 7. Nf3 {[%clk 0:02:57]}  Nbd7 {[%clk 0:02:59]} 8. Qb3 {[%clk 0:02:57]}  Rb8 {[%clk 0:02:52]} 9. Bf4 {[%clk 0:02:57]}  e6 {[%clk 0:02:44]} 10. Nbd2 {[%clk 0:02:56]}  Bf8 {[%clk 0:02:36]} 11. e3 {[%clk 0:02:54]}  Bd6 {[%clk 0:02:36]} 12. Bxd6 {[%clk 0:02:51]}  cxd6 {[%clk 0:02:37]} 13. Qa3 {[%clk 0:02:48]}  Qb6 {[%clk 0:02:36]} 14. Qb3 {[%clk 0:02:44]}  Ke7 {[%clk 0:02:35]} 15. Qxb6 {[%clk 0:02:44]}  Nxb6 {[%clk 0:02:36]} 16. Nh4 {[%clk 0:02:44]}  Bg6 {[%clk 0:02:36]} 17. Be2 {[%clk 0:02:43]}  Na4 {[%clk 0:02:32]} 18. Nxg6+ {[%clk 0:02:37]}  hxg6 {[%clk 0:02:32]} 19. O-O-O {[%clk 0:02:37]}  Rxh1 {[%clk 0:02:21]} 20. Rxh1 {[%clk 0:02:37]}  b5 {[%clk 0:02:21]} 21. Kb1 {[%clk 0:02:32]}  a5 {[%clk 0:02:11]} 22. Nb3 {[%clk 0:02:30]}  b4 {[%clk 0:02:09]} 23. cxb4 {[%clk 0:02:29]}  axb4 {[%clk 0:02:04]} 24. Nc1 {[%clk 0:02:20]}  Ne4 {[%clk 0:01:58]} 25. f3 {[%clk 0:02:12]}  Ng3 {[%clk 0:01:57]} 26. Rh3 {[%clk 0:02:09]}  Nf5 {[%clk 0:01:56]} 27. f4 {[%clk 0:02:06]}  Kf6 {[%clk 0:01:47]} 28. g4 {[%clk 0:02:03]}  Ne7 {[%clk 0:01:46]} 29. g5+ {[%clk 0:02:04]}  Kg7 {[%clk 0:01:46]} 30. Bd3 {[%clk 0:02:04]}  Nc6 {[%clk 0:01:43]} 31. Nb3 {[%clk 0:02:00]}  e5 {[%clk 0:01:41]} 32. f5 {[%clk 0:01:56]}  e4 {[%clk 0:01:37]} 33. f6+ {[%clk 0:01:55]}  Kg8 {[%clk 0:01:37]} 34. Be2 {[%clk 0:01:55]}  Nb6 {[%clk 0:01:36]} 35. Nd2 {[%clk 0:01:51]}  Nc4 {[%clk 0:01:30]} 36. Nxc4 {[%clk 0:01:48]}  dxc4 {[%clk 0:01:31]} 37. Bxc4 {[%clk 0:01:48]}  Na7 {[%clk 0:01:15]} 38. Rh1 {[%clk 0:01:41]}  Nb5 {[%clk 0:01:03]} 39. Rc1 {[%clk 0:01:27]}  Na7 {[%clk 0:00:58]} 40. Bb3 {[%clk 0:01:20]}  Nb5 {[%clk 0:00:55]} 41. Rc6 {[%clk 0:01:17]}  Kf8 {[%clk 0:00:52]} 42. Bc4 {[%clk 0:01:17]}  Ke8 {[%clk 0:00:52]} 43. Ra6 {[%clk 0:01:11]}  Kd7 {[%clk 0:00:50]} 44. Ra5 {[%clk 0:01:11]}  Nc7 {[%clk 0:00:49]} 45. Bxf7 {[%clk 0:01:07]}  Rh8 {[%clk 0:00:44]} 46. Bxg6 {[%clk 0:01:06]}  d5 {[%clk 0:00:43]} 47. Bf5+ {[%clk 0:01:06]}  Kd6 {[%clk 0:00:42]} 48. g6 {[%clk 0:01:06]}  Rh1+ {[%clk 0:00:40]} 49. Kc2 {[%clk 0:01:05]}  Rg1 {[%clk 0:00:40]} 50. g7 {[%clk 0:01:03]}  Ne8 {[%clk 0:00:38]} 51. Ra6+ {[%clk 0:01:02]}  Kc7 {[%clk 0:00:39]} 52. Be6 {[%clk 0:01:01]}  Nxf6 {[%clk 0:00:38]} 53. Bf7 {[%clk 0:00:53]}  Ng4 {[%clk 0:00:21]} 54. g8=Q {[%clk 0:00:51]}  Nxe3+ {[%clk 0:00:21]} 55. Kb3 {[%clk 0:00:50]}  Rxg8 {[%clk 0:00:21]} 56. Bxg8 {[%clk 0:00:50]}  Nf5 {[%clk 0:00:22]} 57. Bxd5 {[%clk 0:00:50]}  e3 {[%clk 0:00:22]} 58. Bc4 {[%clk 0:00:45]}  Nxd4+ {[%clk 0:00:20]} 59. Kxb4 {[%clk 0:00:45]}  e2 {[%clk 0:00:21]} 60. Bxe2 {[%clk 0:00:45]}  Nxe2 {[%clk 0:00:22]} 61. Re6 {[%clk 0:00:45]}  Nd4 {[%clk 0:00:22]} 62. Re4 {[%clk 0:00:45]}  Nc6+ {[%clk 0:00:22]} 63. Kc5 {[%clk 0:00:45]}  Na7 {[%clk 0:00:22]} 64. Re7+ {[%clk 0:00:45]} 1-0


[Site "https://www.chess.com"]

[Event "Titled Tuesday Blitz June 13 Late 2023"]
[White "Sviridov, Valery"]
[Black "Annaberdiyev, Meylis"]
[WhiteFideId "4120680"]
[BlackFideId "14000563"]
[WhiteElo "2457"]
[BlackElo "2416"]
[Result "1-0"]
[Round "7"]
[TimeControl "180+2"]
[Date "2023.06.13"]
[WhiteClock "0:00:16"]
[BlackClock "0:00:00"]
[Board "27"]

1. d4 {[%clk 0:03:00]}  Nf6 {[%clk 0:02:58]} 2. Nf3 {[%clk 0:03:01]}  g6 {[%clk 0:02:58]} 3. g3 {[%clk 0:03:00]}  Bg7 {[%clk 0:02:58]} 4. c4 {[%clk 0:03:01]}  O-O {[%clk 0:02:58]} 5. Bg2 {[%clk 0:03:02]}  d6 {[%clk 0:02:59]} 6. O-O {[%clk 0:03:02]}  c6 {[%clk 0:03:00]} 7. Nc3 {[%clk 0:03:02]}  Bf5 {[%clk 0:03:00]} 8. Qb3 {[%clk 0:03:02]}  Qb6 {[%clk 0:02:59]} 9. Re1 {[%clk 0:03:03]}  Na6 {[%clk 0:02:40]} 10. e4 {[%clk 0:03:02]}  Bg4 {[%clk 0:02:40]} 11. Be3 {[%clk 0:03:01]}  Qxb3 {[%clk 0:02:37]} 12. axb3 {[%clk 0:03:02]}  Nb4 {[%clk 0:02:37]} 13. Re2 {[%clk 0:03:01]}  Nd7 {[%clk 0:02:35]} 14. Ra4 {[%clk 0:02:58]}  c5 {[%clk 0:02:26]} 15. dxc5 {[%clk 0:02:19]}  dxc5 {[%clk 0:02:26]} 16. Rd2 {[%clk 0:02:18]}  Rfd8 {[%clk 0:01:52]} 17. Ne1 {[%clk 0:02:03]}  Nc6 {[%clk 0:01:43]} 18. Nd5 {[%clk 0:02:03]}  Nb6 {[%clk 0:01:32]} 19. Ra3 {[%clk 0:01:55]}  Nxd5 {[%clk 0:01:29]} 20. exd5 {[%clk 0:01:31]}  Nd4 {[%clk 0:01:29]} 21. h3 {[%clk 0:01:32]}  Bd7 {[%clk 0:01:15]} 22. Nd3 {[%clk 0:01:32]}  b6 {[%clk 0:01:13]} 23. b4 {[%clk 0:01:32]}  cxb4 {[%clk 0:00:52]} 24. Nxb4 {[%clk 0:01:33]}  Nf5 {[%clk 0:00:52]} 25. Bf4 {[%clk 0:01:30]}  a5 {[%clk 0:00:29]} 26. Nc6 {[%clk 0:01:14]}  Re8 {[%clk 0:00:26]} 27. Rb3 {[%clk 0:01:08]}  e5 {[%clk 0:00:24]} 28. dxe6 {[%clk 0:00:59]}  Bxe6 {[%clk 0:00:24]} 29. Rxb6 {[%clk 0:00:53]}  Bxc4 {[%clk 0:00:22]} 30. g4 {[%clk 0:00:53]}  Nh4 {[%clk 0:00:22]} 31. Ne7+ {[%clk 0:00:50]}  Kf8 {[%clk 0:00:17]} 32. Bxa8 {[%clk 0:00:51]}  Rxa8 {[%clk 0:00:17]} 33. Rc2 {[%clk 0:00:43]}  Nf3+ {[%clk 0:00:16]} 34. Kh1 {[%clk 0:00:42]}  Be6 {[%clk 0:00:12]} 35. Bd6 {[%clk 0:00:41]}  Ke8 {[%clk 0:00:08]} 36. Rc1 {[%clk 0:00:40]}  Rd8 {[%clk 0:00:08]} 37. Kg2 {[%clk 0:00:40]}  Nh4+ {[%clk 0:00:06]} 38. Kg3 {[%clk 0:00:25]}  Rxd6 {[%clk 0:00:06]} 39. Rxd6 {[%clk 0:00:25]}  Be5+ {[%clk 0:00:06]} 40. Kxh4 {[%clk 0:00:25]}  Bxd6 {[%clk 0:00:07]} 41. Nc6 {[%clk 0:00:25]}  Bf4 {[%clk 0:00:05]} 42. Ra1 {[%clk 0:00:22]}  f6 {[%clk 0:00:05]} 43. Rxa5 {[%clk 0:00:19]}  Bf7 {[%clk 0:00:04]} 44. g5 {[%clk 0:00:18]}  fxg5+ {[%clk 0:00:03]} 45. Kg4 {[%clk 0:00:17]}  Be6+ {[%clk 0:00:02]} 46. Kf3 {[%clk 0:00:17]}  Bxh3 {[%clk 0:00:02]} 47. Ra7 {[%clk 0:00:17]}  h5 {[%clk 0:00:02]} 48. Ke2 {[%clk 0:00:15]}  Bg4+ {[%clk 0:00:02]} 49. f3 {[%clk 0:00:15]}  Bf5 {[%clk 0:00:02]} 50. Nd4 {[%clk 0:00:16]}  Bb1 {[%clk 0:00:01]} 51. b4 {[%clk 0:00:16]}  h4 {[%clk 0:00:00]} 52. Rh7 {[%clk 0:00:16]} 1-0


[Site "https://www.chess.com"]

[Event "Titled Tuesday Blitz June 13 Late 2023"]
[White "Babazada, Khazar"]
[Black "Kleiman, Jake"]
[WhiteFideId "13413554"]
[BlackFideId "2020041"]
[WhiteElo "2369"]
[BlackElo "2654"]
[Result "1-0"]
[Round "7"]
[TimeControl "180+2"]
[Date "2023.06.13"]
[WhiteClock "0:00:10"]
[BlackClock "0:00:00"]
[Board "28"]

1. e4 {[%clk 0:03:00]}  e5 {[%clk 0:02:58]} 2. Nf3 {[%clk 0:03:00]}  Nc6 {[%clk 0:02:58]} 3. Bc4 {[%clk 0:03:00]}  Bc5 {[%clk 0:02:58]} 4. c3 {[%clk 0:03:00]}  Nf6 {[%clk 0:02:58]} 5. d4 {[%clk 0:03:00]}  exd4 {[%clk 0:02:58]} 6. cxd4 {[%clk 0:03:01]}  Bb4+ {[%clk 0:02:59]} 7. Nc3 {[%clk 0:03:01]}  Nxe4 {[%clk 0:02:56]} 8. O-O {[%clk 0:03:02]}  Bxc3 {[%clk 0:02:57]} 9. d5 {[%clk 0:03:02]}  Bf6 {[%clk 0:02:57]} 10. Re1 {[%clk 0:03:02]}  Ne7 {[%clk 0:02:56]} 11. Rxe4 {[%clk 0:03:02]}  d6 {[%clk 0:02:57]} 12. Bg5 {[%clk 0:02:58]}  Bxg5 {[%clk 0:02:56]} 13. Nxg5 {[%clk 0:02:59]}  h6 {[%clk 0:02:56]} 14. Nf3 {[%clk 0:02:56]}  O-O {[%clk 0:02:54]} 15. Qb3 {[%clk 0:02:50]}  Ng6 {[%clk 0:02:44]} 16. Rae1 {[%clk 0:02:49]}  a6 {[%clk 0:02:21]} 17. a4 {[%clk 0:02:47]}  b6 {[%clk 0:02:21]} 18. Nd4 {[%clk 0:02:46]}  Bd7 {[%clk 0:02:16]} 19. Nc6 {[%clk 0:02:32]}  Bxc6 {[%clk 0:02:14]} 20. dxc6 {[%clk 0:02:33]}  Qf6 {[%clk 0:02:13]} 21. R4e3 {[%clk 0:02:20]}  Ne5 {[%clk 0:02:10]} 22. Bd5 {[%clk 0:02:20]}  b5 {[%clk 0:02:03]} 23. a5 {[%clk 0:02:14]}  Rae8 {[%clk 0:01:43]} 24. g3 {[%clk 0:02:12]}  Re7 {[%clk 0:01:43]} 25. h4 {[%clk 0:00:59]}  Rfe8 {[%clk 0:01:37]} 26. Qd1 {[%clk 0:00:56]}  Ng6 {[%clk 0:01:31]} 27. Rxe7 {[%clk 0:00:52]}  Rxe7 {[%clk 0:01:30]} 28. b4 {[%clk 0:00:52]}  Rxe1+ {[%clk 0:01:22]} 29. Qxe1 {[%clk 0:00:53]}  Qe5 {[%clk 0:01:19]} 30. Qd1 {[%clk 0:00:47]}  Ne7 {[%clk 0:01:15]} 31. Bg2 {[%clk 0:00:46]}  Qe6 {[%clk 0:01:08]} 32. Qd4 {[%clk 0:00:45]}  d5 {[%clk 0:01:03]} 33. Qc5 {[%clk 0:00:30]}  Nxc6 {[%clk 0:00:36]} 34. Bxd5 {[%clk 0:00:28]}  Qe1+ {[%clk 0:00:37]} 35. Kg2 {[%clk 0:00:28]}  Nxb4 {[%clk 0:00:37]} 36. Bb3 {[%clk 0:00:16]}  Qe4+ {[%clk 0:00:33]} 37. Kh2 {[%clk 0:00:16]}  c6 {[%clk 0:00:13]} 38. Qd6 {[%clk 0:00:16]}  Nd5 {[%clk 0:00:07]} 39. Qxc6 {[%clk 0:00:16]}  Nf6 {[%clk 0:00:04]} 40. Qxa6 {[%clk 0:00:15]}  Ng4+ {[%clk 0:00:03]} 41. Kg1 {[%clk 0:00:12]}  Qe1+ {[%clk 0:00:04]} 42. Kg2 {[%clk 0:00:13]}  Qxf2+ {[%clk 0:00:04]} 43. Kh3 {[%clk 0:00:13]}  Ne5 {[%clk 0:00:02]} 44. Qa8+ {[%clk 0:00:13]}  Kh7 {[%clk 0:00:02]} 45. Qe4+ {[%clk 0:00:14]}  Ng6 {[%clk 0:00:02]} 46. h5 {[%clk 0:00:11]}  Qf1+ {[%clk 0:00:03]} 47. Kg4 {[%clk 0:00:10]}  f5+ {[%clk 0:00:01]} 48. Qxf5 {[%clk 0:00:11]}  Qxf5+ {[%clk 0:00:02]} 49. Kxf5 {[%clk 0:00:12]}  Ne7+ {[%clk 0:00:03]} 50. Ke6 {[%clk 0:00:09]}  Nc6 {[%clk 0:00:03]} 51. a6 {[%clk 0:00:10]}  Na7 {[%clk 0:00:02]} 52. Kd6 {[%clk 0:00:10]}  g5 {[%clk 0:00:00]} 53. Kc7 {[%clk 0:00:10]} 1-0


[Site "https://www.chess.com"]

[Event "Titled Tuesday Blitz June 13 Late 2023"]
[White "Grigoriants, Sergey"]
[Black "Saveliev, Alexei"]
[WhiteFideId "4130804"]
[BlackFideId "24128546"]
[WhiteElo "2502"]
[BlackElo "2271"]
[Result "1-0"]
[Round "7"]
[TimeControl "180+2"]
[Date "2023.06.13"]
[WhiteClock "0:00:04"]
[BlackClock "0:00:03"]
[Board "29"]

1. d4 {[%clk 0:03:00]}  g6 {[%clk 0:03:00]} 2. e4 {[%clk 0:03:00]}  Bg7 {[%clk 0:03:01]} 3. Nf3 {[%clk 0:03:01]}  d6 {[%clk 0:03:01]} 4. Bc4 {[%clk 0:03:01]}  Nc6 {[%clk 0:03:01]} 5. h3 {[%clk 0:03:00]}  Nf6 {[%clk 0:03:00]} 6. Qe2 {[%clk 0:02:59]}  O-O {[%clk 0:02:59]} 7. e5 {[%clk 0:02:51]}  dxe5 {[%clk 0:02:57]} 8. dxe5 {[%clk 0:02:51]}  Nd5 {[%clk 0:02:55]} 9. O-O {[%clk 0:02:50]}  Nb6 {[%clk 0:02:44]} 10. Rd1 {[%clk 0:02:49]}  Qe8 {[%clk 0:02:35]} 11. Bb3 {[%clk 0:02:40]}  Na5 {[%clk 0:02:23]} 12. Nc3 {[%clk 0:02:37]}  Nxb3 {[%clk 0:02:08]} 13. axb3 {[%clk 0:02:38]}  Bd7 {[%clk 0:02:08]} 14. Bf4 {[%clk 0:01:17]}  Bc6 {[%clk 0:01:50]} 15. Nd4 {[%clk 0:01:16]}  a6 {[%clk 0:01:34]} 16. e6 {[%clk 0:01:07]}  f5 {[%clk 0:01:34]} 17. Bxc7 {[%clk 0:01:05]}  Nd5 {[%clk 0:01:35]} 18. Nxd5 {[%clk 0:01:03]}  Bxd5 {[%clk 0:01:36]} 19. Be5 {[%clk 0:01:03]}  Rd8 {[%clk 0:01:26]} 20. Bxg7 {[%clk 0:01:02]}  Kxg7 {[%clk 0:01:27]} 21. Qe5+ {[%clk 0:01:01]}  Kg8 {[%clk 0:01:27]} 22. c4 {[%clk 0:00:54]}  Be4 {[%clk 0:01:25]} 23. f3 {[%clk 0:00:51]}  Bc6 {[%clk 0:01:25]} 24. Rd2 {[%clk 0:00:47]}  Rd6 {[%clk 0:01:12]} 25. Rad1 {[%clk 0:00:45]}  Qc8 {[%clk 0:01:05]} 26. Nxc6 {[%clk 0:00:39]}  Rxc6 {[%clk 0:01:06]} 27. Rd7 {[%clk 0:00:37]}  Re8 {[%clk 0:00:47]} 28. Kh1 {[%clk 0:00:29]}  b5 {[%clk 0:00:44]} 29. cxb5 {[%clk 0:00:18]}  axb5 {[%clk 0:00:45]} 30. Qxb5 {[%clk 0:00:18]}  Rc1 {[%clk 0:00:35]} 31. Qe5 {[%clk 0:00:12]}  Rxd1+ {[%clk 0:00:23]} 32. Rxd1 {[%clk 0:00:11]}  Qc2 {[%clk 0:00:24]} 33. Rd7 {[%clk 0:00:07]}  Qxb3 {[%clk 0:00:19]} 34. Kh2 {[%clk 0:00:08]}  Qc4 {[%clk 0:00:17]} 35. Rb7 {[%clk 0:00:07]}  h5 {[%clk 0:00:14]} 36. b4 {[%clk 0:00:06]}  h4 {[%clk 0:00:14]} 37. b5 {[%clk 0:00:05]}  Qb4 {[%clk 0:00:13]} 38. b6 {[%clk 0:00:05]}  Rd8 {[%clk 0:00:13]} 39. Rb8 {[%clk 0:00:05]}  Rxb8 {[%clk 0:00:09]} 40. Qxb8+ {[%clk 0:00:06]}  Kg7 {[%clk 0:00:09]} 41. Qc7 {[%clk 0:00:07]}  Qd2 {[%clk 0:00:03]} 42. Qxe7+ {[%clk 0:00:07]}  Kh6 {[%clk 0:00:03]} 43. Qxh4+ {[%clk 0:00:07]}  Kg7 {[%clk 0:00:04]} 44. b7 {[%clk 0:00:04]}  f4 {[%clk 0:00:01]} 45. Qe7+ {[%clk 0:00:04]}  Kh6 {[%clk 0:00:02]} 46. b8=Q {[%clk 0:00:04]}  Qd4 {[%clk 0:00:01]} 47. Qh4+ {[%clk 0:00:03]}  Kg7 {[%clk 0:00:02]} 48. Qbxf4 {[%clk 0:00:03]}  Qf6 {[%clk 0:00:01]} 49. Qhxf6+ {[%clk 0:00:03]}  Kh7 {[%clk 0:00:02]} 50. Q4h4+ {[%clk 0:00:03]}  Kg8 {[%clk 0:00:03]} 51. Qhh8# {[%clk 0:00:04]} 1-0


[Site "https://www.chess.com"]

[Event "Titled Tuesday Blitz June 13 Late 2023"]
[White "Tari, Aryan"]
[Black "Sieciechowicz, Marcin"]
[WhiteFideId "1510045"]
[BlackFideId "1130170"]
[WhiteElo "2586"]
[BlackElo "2301"]
[Result "0-1"]
[Round "7"]
[TimeControl "180+2"]
[Date "2023.06.13"]
[WhiteClock "0:00:02"]
[BlackClock "0:00:12"]
[Board "30"]

1. f4 {[%clk 0:02:51]}  d5 {[%clk 0:02:57]} 2. Nf3 {[%clk 0:02:50]}  Nf6 {[%clk 0:02:57]} 3. g3 {[%clk 0:02:50]}  c6 {[%clk 0:02:58]} 4. Bg2 {[%clk 0:02:50]}  Qb6 {[%clk 0:02:58]} 5. a4 {[%clk 0:02:45]}  a5 {[%clk 0:02:58]} 6. e3 {[%clk 0:02:45]}  g6 {[%clk 0:02:58]} 7. O-O {[%clk 0:02:45]}  Bg7 {[%clk 0:02:58]} 8. d3 {[%clk 0:02:43]}  O-O {[%clk 0:02:59]} 9. Qe1 {[%clk 0:02:43]}  Nbd7 {[%clk 0:02:57]} 10. Kh1 {[%clk 0:02:42]}  Re8 {[%clk 0:02:57]} 11. Ne5 {[%clk 0:02:33]}  Qc7 {[%clk 0:02:53]} 12. d4 {[%clk 0:02:23]}  Ne4 {[%clk 0:02:53]} 13. Nd2 {[%clk 0:02:17]}  Ndf6 {[%clk 0:02:52]} 14. Ndf3 {[%clk 0:02:16]}  Bf5 {[%clk 0:02:50]} 15. h3 {[%clk 0:02:14]}  h5 {[%clk 0:02:50]} 16. Ng5 {[%clk 0:02:13]}  Nxg5 {[%clk 0:02:34]} 17. fxg5 {[%clk 0:02:14]}  Ne4 {[%clk 0:02:34]} 18. Rf4 {[%clk 0:01:49]}  Bxe5 {[%clk 0:02:31]} 19. dxe5 {[%clk 0:01:50]}  Qxe5 {[%clk 0:02:31]} 20. g4 {[%clk 0:01:47]}  hxg4 {[%clk 0:02:18]} 21. hxg4 {[%clk 0:01:47]}  Be6 {[%clk 0:02:10]} 22. Bxe4 {[%clk 0:01:47]}  dxe4 {[%clk 0:02:09]} 23. Bd2 {[%clk 0:01:26]}  Qxg5 {[%clk 0:02:09]} 24. Qg3 {[%clk 0:01:23]}  Kg7 {[%clk 0:01:57]} 25. Bc3+ {[%clk 0:01:17]}  f6 {[%clk 0:01:57]} 26. Raf1 {[%clk 0:01:18]}  Rf8 {[%clk 0:01:48]} 27. Kg1 {[%clk 0:01:17]}  Bc4 {[%clk 0:01:45]} 28. Re1 {[%clk 0:00:40]}  e5 {[%clk 0:01:18]} 29. Rf2 {[%clk 0:00:40]}  Be6 {[%clk 0:00:55]} 30. Rg2 {[%clk 0:00:33]}  b6 {[%clk 0:00:54]} 31. Qf2 {[%clk 0:00:26]}  Rh8 {[%clk 0:00:45]} 32. Rd1 {[%clk 0:00:23]}  Rad8 {[%clk 0:00:31]} 33. Rd2 {[%clk 0:00:23]}  Rd5 {[%clk 0:00:22]} 34. Qg3 {[%clk 0:00:20]}  Rh4 {[%clk 0:00:21]} 35. Rxd5 {[%clk 0:00:10]}  cxd5 {[%clk 0:00:22]} 36. b4 {[%clk 0:00:02]}  axb4 {[%clk 0:00:19]} 37. Bxb4 {[%clk 0:00:03]}  Rxg4 {[%clk 0:00:19]} 38. Qf2 {[%clk 0:00:04]}  Rxg2+ {[%clk 0:00:19]} 39. Qxg2 {[%clk 0:00:04]}  Qxe3+ {[%clk 0:00:19]} 40. Kh2 {[%clk 0:00:05]}  Qf4+ {[%clk 0:00:18]} 41. Kg1 {[%clk 0:00:06]}  Qg4 {[%clk 0:00:18]} 42. Bd6 {[%clk 0:00:02]}  Qxg2+ {[%clk 0:00:17]} 43. Kxg2 {[%clk 0:00:03]}  Bd7 {[%clk 0:00:15]} 44. Bc7 {[%clk 0:00:02]}  Bxa4 {[%clk 0:00:14]} 45. c3 {[%clk 0:00:03]}  b5 {[%clk 0:00:13]} 46. Bb6 {[%clk 0:00:02]}  Kf7 {[%clk 0:00:13]} 47. Bc5 {[%clk 0:00:03]}  Ke6 {[%clk 0:00:13]} 48. Kg3 {[%clk 0:00:03]}  Bd1 {[%clk 0:00:13]} 49. Kh4 {[%clk 0:00:03]}  Kf5 {[%clk 0:00:12]} 50. Kg3 {[%clk 0:00:01]}  g5 {[%clk 0:00:12]} 51. Kf2 {[%clk 0:00:02]}  Ke6 {[%clk 0:00:12]} 52. Ke1 {[%clk 0:00:03]}  Bb3 {[%clk 0:00:13]} 53. Kf2 {[%clk 0:00:03]}  f5 {[%clk 0:00:12]} 54. Bf8 {[%clk 0:00:04]}  f4 {[%clk 0:00:12]} 55. Bg7 {[%clk 0:00:02]}  Kf5 {[%clk 0:00:12]} 0-1


[Site "https://www.chess.com"]

[Event "Titled Tuesday Blitz June 13 Late 2023"]
[White "Elsa167"]
[Black "Seemann, Jakub"]
[BlackFideId "21874697"]
[WhiteElo "2876"]
[BlackElo "2364"]
[Result "1-0"]
[Round "7"]
[TimeControl "180+2"]
[Date "2023.06.13"]
[WhiteClock "0:00:04"]
[BlackClock "0:00:01"]
[Board "32"]

1. d4 {[%clk 0:03:00]}  Nf6 {[%clk 0:02:59]} 2. c4 {[%clk 0:03:01]}  g6 {[%clk 0:03:00]} 3. Nc3 {[%clk 0:02:59]}  Bg7 {[%clk 0:03:00]} 4. e4 {[%clk 0:02:59]}  O-O {[%clk 0:03:01]} 5. h3 {[%clk 0:03:00]}  d6 {[%clk 0:03:01]} 6. Be3 {[%clk 0:03:00]}  c5 {[%clk 0:03:02]} 7. Nf3 {[%clk 0:02:59]}  Qa5 {[%clk 0:02:59]} 8. Bd3 {[%clk 0:02:58]}  Nc6 {[%clk 0:02:44]} 9. d5 {[%clk 0:02:35]}  Nb4 {[%clk 0:02:44]} 10. Bb1 {[%clk 0:02:35]}  e6 {[%clk 0:02:32]} 11. O-O {[%clk 0:02:34]}  e5 {[%clk 0:02:23]} 12. a3 {[%clk 0:02:32]}  Na6 {[%clk 0:02:22]} 13. Bc2 {[%clk 0:02:24]}  Qd8 {[%clk 0:02:21]} 14. Rb1 {[%clk 0:02:08]}  Nc7 {[%clk 0:02:21]} 15. b4 {[%clk 0:02:08]}  b6 {[%clk 0:02:21]} 16. Ba4 {[%clk 0:02:06]}  Bd7 {[%clk 0:02:14]} 17. Bxd7 {[%clk 0:02:05]}  Qxd7 {[%clk 0:02:14]} 18. Qc2 {[%clk 0:01:42]}  Rfb8 {[%clk 0:02:11]} 19. Rb2 {[%clk 0:01:41]}  a5 {[%clk 0:02:01]} 20. bxc5 {[%clk 0:01:40]}  bxc5 {[%clk 0:02:00]} 21. Rfb1 {[%clk 0:01:40]}  Rxb2 {[%clk 0:02:00]} 22. Qxb2 {[%clk 0:01:32]}  Nce8 {[%clk 0:01:52]} 23. Qb7 {[%clk 0:01:29]}  Qxb7 {[%clk 0:01:44]} 24. Rxb7 {[%clk 0:01:30]}  Kf8 {[%clk 0:01:32]} 25. a4 {[%clk 0:01:30]}  Ng8 {[%clk 0:01:31]} 26. Nd2 {[%clk 0:01:23]}  f5 {[%clk 0:01:28]} 27. Nb3 {[%clk 0:01:18]}  Bf6 {[%clk 0:01:20]} 28. f3 {[%clk 0:01:12]}  Bd8 {[%clk 0:01:18]} 29. Bd2 {[%clk 0:01:11]}  Ngf6 {[%clk 0:01:11]} 30. Kf2 {[%clk 0:01:02]}  fxe4 {[%clk 0:01:03]} 31. fxe4 {[%clk 0:00:59]}  Bc7 {[%clk 0:01:01]} 32. Ke2 {[%clk 0:00:57]}  Ke7 {[%clk 0:00:59]} 33. Kd3 {[%clk 0:00:56]}  Kd7 {[%clk 0:00:58]} 34. Rb5 {[%clk 0:00:50]}  Nh5 {[%clk 0:00:43]} 35. Ne2 {[%clk 0:00:50]}  Nef6 {[%clk 0:00:19]} 36. g4 {[%clk 0:00:49]}  Nf4+ {[%clk 0:00:17]} 37. Nxf4 {[%clk 0:00:48]}  exf4 {[%clk 0:00:18]} 38. Bxf4 {[%clk 0:00:49]}  Re8 {[%clk 0:00:18]} 39. Nd2 {[%clk 0:00:46]}  Rf8 {[%clk 0:00:18]} 40. Bh6 {[%clk 0:00:35]}  Rf7 {[%clk 0:00:17]} 41. Rb1 {[%clk 0:00:33]}  Ng8 {[%clk 0:00:17]} 42. Be3 {[%clk 0:00:32]}  Ne7 {[%clk 0:00:17]} 43. e5 {[%clk 0:00:29]}  dxe5 {[%clk 0:00:15]} 44. Ne4 {[%clk 0:00:29]}  Rf3 {[%clk 0:00:11]} 45. Nxc5+ {[%clk 0:00:30]}  Kc8 {[%clk 0:00:10]} 46. Ne4 {[%clk 0:00:27]}  Nf5 {[%clk 0:00:06]} 47. gxf5 {[%clk 0:00:25]}  gxf5 {[%clk 0:00:07]} 48. Ng5 {[%clk 0:00:24]}  Rg3 {[%clk 0:00:07]} 49. Ne6 {[%clk 0:00:05]}  f4 {[%clk 0:00:07]} 50. c5 {[%clk 0:00:06]}  Rxe3+ {[%clk 0:00:06]} 51. Kc4 {[%clk 0:00:07]}  f3 {[%clk 0:00:07]} 52. d6 {[%clk 0:00:07]}  Bxd6 {[%clk 0:00:05]} 53. cxd6 {[%clk 0:00:07]}  Kd7 {[%clk 0:00:05]} 54. Kd5 {[%clk 0:00:05]}  Rd3+ {[%clk 0:00:05]} 55. Ke4 {[%clk 0:00:05]}  Ra3 {[%clk 0:00:04]} 56. Ng5 {[%clk 0:00:02]}  f2 {[%clk 0:00:03]} 57. Rf1 {[%clk 0:00:01]}  Rxa4+ {[%clk 0:00:03]} 58. Kxe5 {[%clk 0:00:02]}  Ra2 {[%clk 0:00:02]} 59. Ne4 {[%clk 0:00:02]}  Re2 {[%clk 0:00:02]} 60. Kd5 {[%clk 0:00:02]}  a4 {[%clk 0:00:02]} 61. Nc5+ {[%clk 0:00:03]}  Kd8 {[%clk 0:00:02]} 62. Rb1 {[%clk 0:00:04]}  a3 {[%clk 0:00:01]} 63. Rb8# {[%clk 0:00:04]} 1-0


[Site "https://www.chess.com"]